bitfinex/quotes_SOLUSD_20241222
["timestamp","ask_amount","ask_price","bid_price","bid_amount"]
[1734897557550,3.23622957,178.31,178.27,27.31260438]
[1734897557851,3.23622957,178.31,178.29,27.31260438]
[1734897558057,3.23622957,178.31,178.22,14.0272]
[1734897558222,6.1527,178.35,178.29,27.31260438]
[1734897558753,33.46530438,178.35,178.28,27.31260438]
[1734897559160,3.23629153,178.34,178.28,27.31260438]
[1734897559661,3.23629153,178.34,178.29,27.31260438]
[1734897559869,3.23629153,178.33,178.28,27.31260438]
[1734897560055,3.23629153,178.33,178.3,27.31260438]
[1734897560255,3.23629153,178.33,178.28,27.31260438]
[1734897560475,27.31260438,178.32,178.25,27.31260438]
[1734897560950,27.31260438,178.34,178.27,27.31260438]
[1734897561273,3.23514957,178.31,178.27,27.31260438]
[1734897562049,27.31260438,178.34,178.27,27.31260438]
[1734897562251,27.31260438,178.33,178.26,28.04911314]
[1734897562574,30.55327939,178.33,178.26,28.04911314]
[1734897563073,3.24067501,178.32,178.26,28.04911314]
[1734897563276,3.24067501,178.32,178.27,27.31260438]
[1734897563575,3.24067501,178.32,178.26,28.04911314]
[1734897563768,3.24067501,178.31,178.26,28.04911314]
[1734897564189,3.24067501,178.31,178.26,0.73650876]
[1734897564373,30.55327939,178.31,178.26,0.73650876]
[1734897564563,27.31260438,178.31,178.26,0.73650876]
[1734897564765,3.24067501,178.32,178.26,28.04911314]
[1734897565168,3.24067501,178.31,178.26,28.04911314]
[1734897565767,3.24067501,178.3,178.26,28.04911314]
[1734897566373,3.24067501,178.32,178.26,28.04911314]
[1734897566579,30.55327939,178.32,178.26,0.73650876]
[1734897566767,1.40465907,178.29,178.26,28.04911314]
[1734897567187,1.40465907,178.28,178.26,28.04911314]
[1734897567574,4.64533408,178.28,178.27,27.31260438]
[1734897567760,3.24067501,178.28,178.27,27.31260438]
[1734897568288,3.24067501,178.34,178.27,27.31260438]
[1734897568479,3.24067501,178.34,178.28,27.31260438]
[1734897568787,3.24067501,178.34,178.3,27.31260438]
[1734897568968,1.40439243,178.33,178.29,27.31260438]
[1734897569784,1.40439243,178.32,178.29,27.31260438]
[1734897569973,1.40439243,178.32,178.3,27.31260438]
[1734897570174,1.40439243,178.31,178.3,27.31260438]
[1734897570690,1.40439243,178.31,178.29,27.31260438]
[1734897571092,1.40439243,178.31,178.26,0.73650876]
[1734897571469,1.40439243,178.3,178.26,0.73650876]
[1734897571776,1.40439243,178.3,178.26,28.04911314]
[1734897572086,1.40439243,178.29,178.26,28.04911314]
[1734897572266,1.40439243,178.29,178.26,0.73650876]
[1734897572699,1.40439243,178.28,178.26,0.73650876]
[1734897573393,1.40439243,178.27,178.26,0.73650876]
[1734897574867,1.40439243,178.27,178.26,28.04911314]
[1734897576786,1.40439243,178.27,178.26,0.73650876]
[1734897576989,1.40439243,178.27,178.26,28.04911314]
[1734897578287,1.40439243,178.27,178.26,27.99744731]
[1734897580869,9.243e-05,178.27,178.26,27.99744731]
[1734897581069,8.4725336,178.41,178.27,20.6034]
[1734897581270,8.4725336,178.41,178.36,27.31260438]
[1734897581580,8.4725336,178.41,178.37,27.31260438]
[1734897581885,1.5394,178.42,178.37,27.31260438]
[1734897582293,8.4725336,178.46,178.4,27.31260438]
[1734897582499,28.85200438,178.47,178.4,27.31260438]
[1734897583089,27.31260438,178.47,178.4,27.31260438]
[1734897583281,27.31260438,178.47,178.41,27.31260438]
[1734897584172,33.49540438,178.48,178.41,27.31260438]
[1734897584379,27.31260438,178.5,178.44,27.31260438]
[1734897584579,1.5394,178.51,178.45,27.31260438]
[1734897584788,28.85200438,178.51,178.44,27.31260438]
[1734897584989,27.31260438,178.5,178.44,27.31260438]
[1734897585189,27.31260438,178.5,178.43,27.31260438]
[1734897586175,27.31260438,178.5,178.44,27.31260438]
[1734897586572,27.31260438,178.5,178.38,41.32680438]
[1734897586573,1.5394,178.51,178.46,27.31260438]
[1734897587401,28.85200438,178.51,178.45,27.31260438]
[1734897587893,27.31260438,178.53,178.46,27.31260438]
[1734897588099,27.31260438,178.53,178.47,27.31260438]
[1734897588671,27.31260438,178.53,178.46,27.31260438]
[1734897588877,7.6487,178.56,178.5,27.31260438]
[1734897589482,33.38430438,178.6,178.53,27.31260438]
[1734897589683,28.88960438,178.61,178.54,27.31260438]
[1734897590001,1.577,178.61,178.55,27.31260438]
[1734897590180,1.577,178.61,178.45,6.3169]
[1734897590181,27.31260438,178.56,178.5,27.31260438]
[1734897590591,27.31260438,178.57,178.5,27.31260438]
[1734897590989,27.31260438,178.57,178.51,27.31260438]
[1734897591602,27.31260438,178.55,178.48,27.31260438]
[1734897591781,27.31260438,178.54,178.48,27.31260438]
[1734897591990,27.31260438,178.52,178.45,27.31260438]
[1734897592187,27.31260438,178.52,178.46,27.31260438]
[1734897592708,33.38430438,178.56,178.46,27.31260438]
[1734897592709,27.31260438,178.53,178.46,27.31260438]
[1734897593021,20.0,178.5,178.47,27.31260438]
[1734897593404,20.0,178.5,178.47,33.26539271]
[1734897593693,20.0,178.53,178.49,27.31260438]
[1734897593892,20.0,178.53,178.48,27.31260438]
[1734897594083,20.0,178.53,178.49,27.31260438]
[1734897594291,6.0717,178.56,178.51,27.31260438]
[1734897595190,27.31260438,178.58,178.51,27.31260438]
[1734897595492,27.31260438,178.63,178.57,27.31260438]
[1734897595694,10.28038556,178.64,178.58,27.31260438]
[1734897595901,6.0717,178.64,178.59,27.31260438]
[1734897596103,22.419816,178.71,178.51,0.12549]
[1734897596104,27.31260438,178.67,178.61,27.31260438]
[1734897597108,6.0868,178.68,178.62,27.31260438]
[1734897597294,27.31260438,178.7,178.63,27.31260438]
[1734897597601,28.89070438,178.71,178.64,27.31260438]
[1734897597979,27.31260438,178.69,178.62,27.31260438]
[1734897598886,27.31260438,178.68,178.61,27.31260438]
[1734897599206,27.31260438,178.69,178.62,27.31260438]
[1734897599808,27.31260438,178.68,178.61,27.31260438]
[1734897600202,27.31260438,178.69,178.62,27.31260438]
[1734897600803,27.31260438,178.7,178.62,27.31260438]
[1734897601008,27.31260438,178.71,178.63,27.31260438]
[1734897601410,27.31260438,178.71,178.64,27.31260438]
[1734897601903,33.39940438,178.73,178.65,27.31260438]
[1734897602115,27.31260438,178.75,178.67,27.31260438]
[1734897602324,30.076241,178.78,178.69,27.31260438]
[1734897602325,27.31260438,178.76,178.69,27.31260438]
[1734897602510,27.31260438,178.77,178.69,27.31260438]
[1734897602720,7.6649,178.78,178.71,27.31260438]
[1734897603017,34.97750438,178.78,178.71,27.31260438]
[1734897603226,7.6649,178.78,178.73,27.31260438]
[1734897603723,6.0868,178.78,178.74,27.31260438]
[1734897603892,6.0868,178.78,178.73,27.31260438]
[1734897604092,27.31260438,178.81,178.74,27.31260438]
[1734897604419,7.6649,178.82,178.76,27.31260438]
[1734897604710,27.31260438,178.84,178.77,27.31260438]
[1734897605010,8.0926,178.87,178.79,27.31260438]
[1734897605011,27.31260438,178.86,178.79,27.31260438]
[1734897605390,35.40520438,178.87,178.8,27.31260438]
[1734897605690,6.5065,178.87,178.81,27.31260438]
[1734897605893,6.5065,178.87,178.82,27.31260438]
[1734897606196,43.97883537,178.84,178.77,43.97883537]
[1734897606721,43.97883537,178.8,178.74,43.97883537]
[1734897607303,43.97883537,178.8,178.73,43.97883537]
[1734897607503,43.97883537,178.81,178.74,43.97883537]
[1734897607814,43.97883537,178.84,178.77,43.97883537]
[1734897608391,43.97883537,178.85,178.79,43.97883537]
[1734897609211,43.97883537,178.85,178.78,43.97883537]
[1734897610114,50.48533537,178.87,178.8,43.97883537]
[1734897610332,43.97883537,178.9,178.83,43.97883537]
[1734897610615,43.97883537,178.85,178.78,43.97883537]
[1734897610799,43.97883537,178.85,178.77,5.05714733]
[1734897610800,43.97883537,178.86,178.79,43.97883537]
[1734897611003,43.97883537,178.88,178.82,43.97883537]
[1734897611501,20.0,178.89,178.77,5.05714733]
[1734897612116,43.97883537,178.84,178.77,49.0359827]
[1734897613316,43.97883537,178.89,178.82,43.97883537]
[1734897613521,43.97883537,178.9,178.83,43.97883537]
[1734897613723,43.97883537,178.89,178.82,43.97883537]
[1734897614621,43.97883537,178.9,178.83,43.97883537]
[1734897614923,43.97883537,178.88,178.8,43.97883537]
[1734897615121,43.97883537,178.88,178.81,43.97883537]
[1734897615320,43.97883537,178.89,178.82,43.97883537]
[1734897615511,43.97883537,178.9,178.83,43.97883537]
[1734897615827,43.97883537,178.89,178.82,43.97883537]
[1734897616122,43.97883537,178.86,178.79,43.97883537]
[1734897616506,43.97883537,178.85,178.78,43.97883537]
[1734897616713,43.97883537,178.83,178.77,5.05714733]
[1734897617225,43.97883537,178.81,178.77,5.05714733]
[1734897617428,43.97883537,178.79,178.77,5.05714733]
[1734897617722,43.97883537,178.78,178.77,5.05714733]
[1734897618704,43.97883537,178.8,178.77,5.05714733]
[1734897618909,43.97883537,178.82,178.77,5.05714733]
[1734897619112,43.97883537,178.83,178.77,5.05714733]
[1734897619295,43.97883537,178.84,178.77,49.0359827]
[1734897619716,43.97883537,178.86,178.79,43.97883537]
[1734897620114,43.97883537,178.85,178.78,43.97883537]
[1734897620733,43.97883537,178.85,178.77,5.05714733]
[1734897620734,43.97883537,178.83,178.77,5.05714733]
[1734897621032,43.97883537,178.82,178.77,5.05714733]
[1734897621527,43.97883537,178.83,178.77,5.05714733]
[1734897621699,63.97883537,178.84,178.77,5.05714733]
[1734897622308,43.97883537,178.86,178.79,43.97883537]
[1734897623023,1.5861,178.87,178.77,5.05714733]
[1734897623024,43.97883537,178.87,178.8,43.97883537]
[1734897623209,43.97883537,178.89,178.82,43.97883537]
[1734897623402,43.97883537,178.88,178.8,43.97883537]
[1734897623629,43.97883537,178.85,178.8,5.05714733]
[1734897624028,43.97883537,178.84,178.8,5.05714733]
[1734897624236,43.97883537,178.83,178.8,5.05714733]
[1734897624403,43.97883537,178.82,178.8,5.05714733]
[1734897624605,43.97883537,178.81,178.8,5.05714733]
[1734897628609,43.97883537,178.81,178.67,1.5682]
[1734897628810,43.97883537,178.71,178.67,1.5682]
[1734897629009,43.97883537,178.72,178.67,1.5682]
[1734897629816,43.97883537,178.73,178.67,1.5682]
[1734897630247,43.97883537,178.74,178.67,1.5682]
[1734897630526,43.97883537,178.71,178.66,6.4712]
[1734897630733,43.97883537,178.69,178.63,2.463841]
[1734897630933,43.97883537,178.68,178.63,2.463841]
[1734897631112,43.97883537,178.7,178.63,2.463841]
[1734897631314,43.97883537,178.71,178.63,46.44267637]
[1734897631633,43.97883537,178.71,178.64,57.97343537]
[1734897632021,43.97883537,178.72,178.64,57.97343537]
[1734897632223,43.97883537,178.73,178.66,43.97883537]
[1734897632620,43.97883537,178.72,178.65,43.97883537]
[1734897633434,43.97883537,178.73,178.65,43.97883537]
[1734897633635,43.97883537,178.73,178.66,43.97883537]
[1734897633836,43.97883537,178.76,178.69,43.97883537]
[1734897634036,43.97883537,178.79,178.71,43.97883537]
[1734897634723,43.97883537,178.79,178.71,50.45003537]
[1734897635322,1.5842,178.86,178.75,43.97883537]
[1734897635528,43.97883537,178.85,178.77,43.97883537]
[1734897635727,43.97883537,178.85,178.78,0.12549]
[1734897635915,1.5842,178.91,178.79,43.97883537]
[1734897636424,43.97883537,178.85,178.78,0.12549]
[1734897636633,43.97883537,178.85,178.78,44.10432537]
[1734897636835,43.97883537,178.85,178.77,86.06253537]
[1734897637026,43.97883537,178.85,178.78,43.97883537]
[1734897637216,43.97883537,178.85,178.77,86.06253537]
[1734897637541,43.97883537,178.85,178.78,43.97883537]
[1734897637726,43.97883537,178.83,178.77,33.9837]
[1734897638231,43.97883537,178.83,178.77,13.9837]
[1734897638744,43.97883537,178.82,178.74,43.97883537]
[1734897638918,1.5842,178.91,178.73,2.1175209]
[1734897638919,43.97883537,178.78,178.73,0.5493209]
[1734897639118,43.97883537,178.75,178.73,0.5493209]
[1734897639318,43.97883537,178.76,178.73,0.5493209]
[1734897639837,43.97883537,178.77,178.73,0.5493209]
[1734897640042,43.97883537,178.81,178.74,43.97883537]
[1734897641144,43.97883537,178.8,178.73,0.5493209]
[1734897641330,6.2967,178.89,178.73,0.5493209]
[1734897641331,43.97883537,178.79,178.73,0.5493209]
[1734897641525,43.97883537,178.78,178.73,14.5365209]
[1734897642252,43.97883537,178.8,178.73,14.5365209]
[1734897642453,20.0,178.86,178.73,14.5365209]
[1734897642764,43.97883537,178.79,178.73,14.5365209]
[1734897643049,43.97883537,178.8,178.73,14.5365209]
[1734897643241,43.97883537,178.8,178.73,58.51535627]
[1734897643452,43.97883537,178.81,178.73,58.51535627]
[1734897644549,43.97883537,178.8,178.73,58.51535627]
[1734897644930,6.2967,178.89,178.73,14.5365209]
[1734897645138,43.97883537,178.77,178.73,0.5493209]
[1734897646225,43.97883537,178.78,178.73,0.5493209]
[1734897646430,43.97883537,178.8,178.73,0.5493209]
[1734897647430,43.97883537,178.81,178.74,57.96553537]
[1734897647746,43.97883537,178.75,178.73,0.5493209]
[1734897647934,43.97883537,178.74,178.73,0.5493209]
[1734897648550,43.97883537,178.75,178.73,0.5493209]
[1734897649265,43.97883537,178.74,178.73,0.5493209]
[1734897649450,87.95767074,178.74,178.73,0.5493209]
[1734897649955,43.97883537,178.74,178.73,0.5493209]
[1734897650869,87.95767074,178.74,178.73,0.5493209]
[1734897653247,43.97883537,178.64,178.59,8.2102]
[1734897653974,43.97883537,178.62,178.55,51.27644707]
[1734897654154,43.97883537,178.61,178.55,0.6904117]
[1734897654473,43.97883537,178.58,178.55,0.6904117]
[1734897654659,43.97883537,178.59,178.55,0.6904117]
[1734897655151,43.97883537,178.56,178.55,0.6904117]
[1734897657272,43.97883537,178.57,178.55,0.6904117]
[1734897657473,43.97883537,178.58,178.55,0.6904117]
[1734897657964,43.97883537,178.59,178.55,0.6904117]
[1734897658165,43.97883537,178.61,178.55,0.6904117]
[1734897658372,43.97883537,178.6,178.55,0.6904117]
[1734897658877,43.97883537,178.61,178.55,0.6904117]
[1734897659281,43.97883537,178.62,178.55,0.6904117]
[1734897659466,43.97883537,178.62,178.55,44.66924707]
[1734897659777,43.97883537,178.65,178.58,43.97883537]
[1734897660003,43.97883537,178.63,178.56,58.10442537]
[1734897661562,43.97883537,178.62,178.56,14.0001]
[1734897661752,43.97883537,178.6,178.55,0.6904117]
[1734897661954,43.97883537,178.62,178.56,14.0008]
[1734897662480,43.97883537,178.63,178.56,57.97963537]
[1734897662776,43.97883537,178.62,178.56,14.0008]
[1734897662968,43.97883537,178.6,178.56,14.0008]
[1734897663367,43.97883537,178.6,178.55,0.6904117]
[1734897663683,43.97883537,178.59,178.55,0.6904117]
[1734897663870,43.97883537,178.6,178.55,0.6904117]
[1734897664467,43.97883537,178.62,178.56,0.12549]
[1734897664672,43.97883537,178.64,178.58,43.97883537]
[1734897664879,43.97883537,178.66,178.6,43.97883537]
[1734897665159,43.97883537,178.67,178.6,43.97883537]
[1734897665354,43.97883537,178.7,178.61,6.3775]
[1734897665582,43.97883537,178.72,178.65,43.97883537]
[1734897665882,43.97883537,178.71,178.65,43.97883537]
[1734897666085,43.97883537,178.71,178.64,43.97883537]
[1734897666470,43.97883537,178.71,178.65,43.97883537]
[1734897667770,43.97883537,178.72,178.65,43.97883537]
[1734897668169,43.97883537,178.7,178.63,57.97423537]
[1734897668567,43.97883537,178.69,178.62,43.97883537]
[1734897668881,43.97883537,178.68,178.61,43.97883537]
[1734897669593,43.97883537,178.66,178.59,43.97883537]
[1734897669770,43.97883537,178.65,178.58,43.97883537]
[1734897669966,43.97883537,178.64,178.57,57.97883537]
[1734897670161,57.96573537,178.74,178.58,43.97883537]
[1734897670162,43.97883537,178.65,178.58,43.97883537]
[1734897670583,43.97883537,178.64,178.57,57.97883537]
[1734897671580,43.97883537,178.64,178.57,43.97883537]
[1734897671792,43.97883537,178.62,178.55,46.29894707]
[1734897672494,43.97883537,178.6,178.55,0.6904117]
[1734897672670,43.97883537,178.59,178.55,0.6904117]
[1734897672863,43.97883537,178.65,178.55,0.6904117]
[1734897672864,43.97883537,178.6,178.55,0.6904117]
[1734897673495,43.97883537,178.59,178.55,0.6904117]
[1734897674272,43.97883537,178.6,178.55,0.6904117]
[1734897674896,43.97883537,178.62,178.55,44.66924707]
[1734897675888,43.97883537,178.6,178.55,0.6904117]
[1734897676278,43.97883537,178.59,178.55,0.6904117]
[1734897677074,43.97883537,178.57,178.55,0.6904117]
[1734897677795,43.97883537,178.56,178.55,0.6904117]
[1734897679081,87.95767074,178.56,178.55,0.6904117]
[1734897679672,43.97883537,178.56,178.55,0.6904117]
[1734897679877,93.99567074,178.56,178.55,0.6904117]
[1734897685776,43.97883537,178.46,178.39,51.81443537]
[1734897686399,43.97883537,178.46,178.39,7.8356]
[1734897686586,43.97883537,178.44,178.39,7.8356]
[1734897687103,43.97883537,178.46,178.39,51.81443537]
[1734897687502,43.97883537,178.47,178.4,0.12549]
[1734897687681,43.97883537,178.48,178.41,43.97883537]
[1734897687883,43.97883537,178.48,178.42,0.12549]
[1734897688076,43.97883537,178.49,178.42,44.10432537]
[1734897688302,43.97883537,178.48,178.42,0.12549]
[1734897688603,43.97883537,178.47,178.4,43.97883537]
[1734897688897,43.97883537,178.44,178.39,7.8356]
[1734897689104,43.97883537,178.44,178.4,0.12549]
[1734897689908,43.97883537,178.43,178.39,7.8356]
[1734897690494,43.97883537,178.44,178.39,7.8356]
[1734897690696,43.97883537,178.43,178.39,7.8356]
[1734897691010,43.97883537,178.45,178.4,0.12549]
[1734897691314,43.97883537,178.43,178.39,7.8356]
[1734897691599,43.97883537,178.42,178.37,0.6904117]
[1734897691840,43.97883537,178.43,178.38,0.12549]
[1734897692180,43.97883537,178.44,178.38,0.12549]
[1734897692581,43.97883537,178.44,178.38,44.10432537]
[1734897692778,43.97883537,178.45,178.38,44.10432537]
[1734897693014,43.97883537,178.47,178.4,44.10432537]
[1734897693392,43.97883537,178.46,178.4,0.12549]
[1734897693593,43.97883537,178.46,178.4,44.10432537]
[1734897693809,43.97883537,178.48,178.42,0.12549]
[1734897694382,50.01683537,178.56,178.44,0.12549]
[1734897694383,43.97883537,178.5,178.44,0.12549]
[1734897694820,6.0581,178.6,178.48,44.10432537]
[1734897694998,43.97883537,178.56,178.5,0.12549]
[1734897695322,43.97883537,178.57,178.51,43.97883537]
[1734897695609,43.97883537,178.61,178.55,0.12549]
[1734897695925,4.208482,178.64,178.6,0.12549]
[1734897696079,4.208482,178.64,178.6,8.22549]
[1734897696283,12.0871703,178.68,178.6,8.22549]
[1734897696484,43.97883537,178.67,178.61,43.97883537]
[1734897696726,43.97883537,178.68,178.61,43.97883537]
[1734897696931,43.97883537,178.67,178.62,0.12549]
[1734897697090,43.97883537,178.64,178.58,43.97883537]
[1734897697427,43.97883537,178.63,178.56,43.97883537]
[1734897697626,43.97883537,178.61,178.55,50.18473537]
[1734897697828,43.97883537,178.58,178.51,43.97883537]
[1734897698111,20.0,178.62,178.49,6.2059]
[1734897698315,43.97883537,178.54,178.49,6.2059]
[1734897698604,43.97883537,178.55,178.48,43.97883537]
[1734897698812,43.97883537,178.55,178.49,0.12549]
[1734897699004,43.97883537,178.59,178.52,43.97883537]
[1734897699186,43.97883537,178.56,178.49,43.97883537]
[1734897699499,43.97883537,178.55,178.49,43.97883537]
[1734897699810,43.97883537,178.58,178.53,0.12549]
[1734897700412,16.29334586,178.64,178.49,0.12549]
[1734897700413,43.97883537,178.54,178.49,0.12549]
[1734897700797,43.97883537,178.55,178.49,0.12549]
[1734897701110,43.97883537,178.55,178.48,43.97883537]
[1734897701493,43.97883537,178.57,178.5,43.97883537]
[1734897702317,43.97883537,178.54,178.48,0.12549]
[1734897702613,43.97883537,178.55,178.48,44.10432537]
[1734897703916,43.97883537,178.54,178.48,0.12549]
[1734897704303,43.97883537,178.51,178.48,0.12549]
[1734897704491,43.97883537,178.5,178.43,43.97883537]
[1734897704914,43.97883537,178.51,178.45,0.12549]
[1734897706212,43.97883537,178.52,178.45,0.12549]
[1734897706717,43.97883537,178.56,178.5,0.12549]
[1734897706912,43.97883537,178.58,178.52,0.12549]
[1734897707709,43.97883537,178.6,178.54,0.12549]
[1734897707900,43.97883537,178.65,178.48,53.65093537]
[1734897707901,43.97883537,178.55,178.48,53.65093537]
[1734897708096,43.97883537,178.53,178.48,1.5721]
[1734897708400,43.97883537,178.65,178.37,28.7216117]
[1734897708401,43.97883537,178.5,178.44,14.0102]
[1734897708608,43.97883537,178.5,178.44,22.1102]
[1734897709012,43.97883537,178.5,178.45,0.12549]
[1734897709221,43.97883537,178.51,178.45,0.12549]
[1734897710017,13.9939,178.65,178.47,52.20432537]
[1734897710221,43.97883537,178.57,178.51,8.22549]
[1734897710799,43.97883537,178.56,178.51,8.22549]
[1734897711920,43.97883537,178.55,178.51,8.22549]
[1734897712127,43.97883537,178.52,178.46,22.1086]
[1734897712296,43.97883537,178.47,178.42,7.778]
[1734897712626,43.97883537,178.44,178.39,22.114]
[1734897713201,43.97883537,178.44,178.39,8.1]
[1734897713418,43.97883537,178.43,178.37,16.5974117]
[1734897713616,43.97883537,178.47,178.37,0.6904117]
[1734897713617,43.97883537,178.4,178.37,0.6904117]
[1734897714347,43.97883537,178.39,178.37,0.6904117]
[1734897715203,43.97883537,178.38,178.37,0.6904117]
[1734897715513,87.95767074,178.38,178.37,0.6904117]
[1734897717114,43.97883537,178.38,178.37,0.6904117]
[1734897721339,43.97883537,178.4,178.37,0.6904117]
[1734897721862,43.97883537,178.38,178.37,0.6904117]
[1734897723254,43.97883537,178.39,178.37,0.8159017]
[1734897723751,43.97883537,178.38,178.37,0.8159017]
[1734897724309,43.97883537,178.4,178.37,0.6904117]
[1734897724524,43.97883537,178.47,178.37,0.6904117]
[1734897724525,43.97883537,178.39,178.37,0.6904117]
[1734897725320,43.97883537,178.4,178.37,0.6904117]
[1734897725524,43.97883537,178.39,178.37,0.6904117]
[1734897726852,43.97883537,178.38,178.37,0.6904117]
[1734897727813,87.95767074,178.38,178.37,0.6904117]
[1734897730920,43.97883537,178.38,178.37,0.6904117]
[1734897731125,87.95767074,178.38,178.37,0.6904117]
[1734897732113,94.23337074,178.38,178.21,64.24183537]
[1734897732437,43.97883537,178.26,178.21,14.0281]
[1734897732628,43.97883537,178.27,178.22,0.12549]
[1734897733014,43.97883537,178.28,178.22,0.12549]
[1734897733219,43.97883537,178.27,178.22,8.22549]
[1734897733927,43.97883537,178.24,178.19,8.7904117]
[1734897734420,43.97883537,178.22,178.19,0.6904117]
[1734897734619,43.97883537,178.26,178.2,0.12549]
[1734897734924,43.97883537,178.25,178.2,0.12549]
[1734897735124,43.97883537,178.24,178.2,0.12549]
[1734897735740,43.97883537,178.24,178.19,0.6904117]
[1734897735941,43.97883537,178.23,178.19,0.6904117]
[1734897736243,43.97883537,178.24,178.19,0.6904117]
[1734897736449,43.97883537,178.23,178.19,0.6904117]
[1734897737934,43.97883537,178.24,178.19,0.6904117]
[1734897738729,43.97883537,178.22,178.19,0.6904117]
[1734897738947,43.97883537,178.21,178.19,0.6904117]
[1734897739339,43.97883537,178.23,178.19,0.6904117]
[1734897740451,43.97883537,178.24,178.19,0.6904117]
[1734897740620,43.97883537,178.26,178.2,0.12549]
[1734897740818,43.97883537,178.28,178.2,52.20432537]
[1734897741038,385.01993813,178.53,178.27,0.12549]
[1734897741236,43.97883537,178.38,178.27,44.10432537]
[1734897741445,43.97883537,178.35,178.27,44.10432537]
[1734897741650,43.97883537,178.32,178.24,58.24943537]
[1734897741869,43.97883537,178.31,178.25,0.12549]
[1734897742022,43.97883537,178.34,178.27,52.20432537]
[1734897742538,43.97883537,178.34,178.27,51.83347982]
[1734897742858,43.97883537,178.35,178.27,51.63347982]
[1734897743151,43.97883537,178.35,178.27,65.65637982]
[1734897743356,43.97883537,178.35,178.28,43.97883537]
[1734897744129,43.97883537,178.38,178.31,43.97883537]
[1734897744331,43.97883537,178.38,178.31,0.12549]
[1734897744631,43.97883537,178.37,178.31,7.78013445]
[1734897744953,43.97883537,178.33,178.26,43.97883537]
[1734897745127,43.97883537,178.29,178.24,6.1706]
[1734897745332,43.97883537,178.28,178.24,6.1706]
[1734897745547,43.97883537,178.27,178.21,9.25674445]
[1734897746047,43.97883537,178.28,178.21,1.6021]
[1734897746224,43.97883537,178.3,178.23,43.97883537]
[1734897746833,43.97883537,178.29,178.23,0.12549]
[1734897747751,43.97883537,178.28,178.21,1.6021]
[1734897747953,43.97883537,178.28,178.21,45.58093537]
[1734897748343,43.97883537,178.27,178.21,1.6021]
[1734897748562,43.97883537,178.25,178.19,7.1590117]
[1734897749061,43.97883537,178.26,178.19,51.13784707]
[1734897749461,43.97883537,178.28,178.21,43.97883537]
[1734897749967,43.97883537,178.27,178.2,44.10432537]
[1734897750181,43.97883537,178.29,178.22,43.97883537]
[1734897751168,43.97883537,178.27,178.2,58.00723537]
[1734897751477,43.97883537,178.23,178.19,7.1590117]
[1734897751762,43.97883537,178.2,178.19,0.6904117]
[1734897753054,87.95767074,178.2,178.19,0.6904117]
[1734897753787,43.97883537,178.2,178.19,0.6904117]
[1734897754141,87.95767074,178.2,178.19,0.6904117]
[1734897754669,43.97883537,178.2,178.19,0.6904117]
[1734897755744,43.97883537,178.21,178.19,0.6904117]
[1734897756675,43.97883537,178.2,178.19,0.6904117]
[1734897760649,43.97883537,178.22,178.19,0.6904117]
[1734897762481,43.97883537,178.2,178.19,0.6904117]
[1734897762667,87.95767074,178.2,178.19,0.6904117]
[1734897763493,43.97883537,178.2,178.19,0.6904117]
[1734897764285,88.08316074,178.2,178.19,0.6904117]
[1734897769299,44.10432537,178.2,178.19,0.6904117]
[1734897769498,88.08316074,178.2,178.19,0.6904117]
[1734897769881,44.10432537,178.2,178.19,0.6904117]
[1734897770399,88.08316074,178.2,178.19,0.6904117]
[1734897771664,44.10432537,178.2,178.19,0.6904117]
[1734897772183,1.6116,178.27,178.19,0.6904117]
[1734897772393,43.97883537,178.21,178.19,0.6904117]
[1734897772696,43.97883537,178.2,178.19,0.6904117]
[1734897773002,43.97883537,178.21,178.19,0.6904117]
[1734897773357,43.97883537,178.2,178.19,0.6904117]
[1734897773863,87.95767074,178.2,178.19,0.6904117]
[1734897774702,43.97883537,178.2,178.19,0.6904117]
[1734897776174,43.97883537,178.22,178.19,0.6904117]
[1734897777173,43.97883537,178.2,178.19,0.6904117]
[1734897780192,43.97883537,178.22,178.19,0.6904117]
[1734897780598,43.97883537,178.21,178.19,0.6904117]
[1734897780775,43.97883537,178.2,178.19,0.6904117]
[1734897782371,88.08316074,178.2,178.19,0.6904117]
[1734897782683,43.97883537,178.2,178.19,0.6904117]
[1734897783072,88.08316074,178.2,178.19,0.6904117]
[1734897783267,43.97883537,178.2,178.19,0.6904117]
[1734897786000,88.08316074,178.2,178.19,0.6904117]
[1734897786192,20.0,178.17,178.08,6.4686]
[1734897786397,43.97883537,178.1,178.08,6.4686]
[1734897786787,43.97883537,178.09,178.07,1.6515]
[1734897786977,43.97883537,178.08,178.07,1.6515]
[1734897787899,43.97883537,178.08,178.02,0.33705]
[1734897788079,43.97883537,178.04,178.02,0.33705]
[1734897788280,43.97883537,178.05,178.02,0.33705]
[1734897788482,43.97883537,178.07,178.03,14.0425]
[1734897788691,43.97883537,178.07,178.03,15.6128]
[1734897789425,43.97883537,178.07,178.03,23.26744445]
[1734897789573,43.97883537,178.08,178.04,6.3793]
[1734897790103,43.97883537,178.07,178.04,6.3793]
[1734897791285,43.97883537,178.05,178.04,6.3793]
[1734897791784,43.97883537,178.11,178.04,6.3793]